[Event "Portuguese-ch U14-20 2022"]
[Site "Fatima"]
[Date "2022.04.12"]
[Round "5.8"]
[White "Rodrigues, Guilherme Eufrasio"]
[Black "Lanca, Luis"]
[Result "0-1"]
[ECO "A24"]
[WhiteElo "1171"]
[BlackElo "1316"]
[Annotator "NA RC"]
[PlyCount "138"]
[EventDate "2022.04.10"]
[EventType "swiss"]
[EventCountry "POR"]
[SourceTitle "playchess.com"]
[Source "ChessBase"]
[SourceQuality "1"]
[TimeControl "5400+30"]

1. c4 {[%emt 0:00:04]} e5 {[%emt 0:00:24]} 2. g3 {[%emt 0:00:17]} Nf6 {[%emt 0:01:19]} 3. Nc3 {[%emt 0:00:04]} g6 {[%emt 0:02:46]} 4. Bg2 {[%emt 0:00:06]} Bg7 {[%emt 0:00:13]} 5. Nf3 {[%emt 0:00:16]} Nc6 {[%emt 0:01:08]} 6. d3 {[%emt 0:00:14]} d6 {[%emt 0:00:58]} 7. O-O {[%emt 0:00:04]} O-O {[%emt 0:00:14]} 8. Rb1 {[%emt 0:06:34]} Re8 {[%emt 0:05:21]} 9. Nd2 {[%emt 0:00:31]} Nd4 {[%emt 0:02:13]} 10. e3 {[%emt 0:00:08]} Nf5 {[%emt 0:00:37]} 11. b4 {[%emt 0:04:00]} c6 {[%emt 0:11:21]} 12. a4 {[%emt 0:05:53]} Qc7 {[%emt 0:07:48]} 13. b5 {[%emt 0:20:35]} Be6 {[%emt 0:03:41]} 14. bxc6 {[%emt 0:03:23]} bxc6 {[%emt 0:01:04]} 15. Nde4 {[%emt 0:00:07]} Nxe4 {[%emt 0:13:35]} 16. Nxe4 {[%emt 0:01:55]} h6 {[%emt 0:02:36]} 17. Ba3 {[%emt 0:09:17]} Bf8 {[%emt 0:05:36]} 18. Nf6+ {[%emt 0:00:07]} Kg7 {[%emt 0:00:13]} 19. Nxe8+ {[%emt 0:00:04]} Rxe8 {[%emt 0:00:02]} 20. Qd2 {[%emt 0:01:00]} c5 {[%emt 0:04:48]} 21. Rb7 {[%emt 0:04:34]} Qd8 {[%emt 0:00:59]} 22. Rfb1 {[%emt 0:00:37]} Qg5 {[%emt 0:00:21]} 23. f4 {[%emt 0:08:33]} exf4 {[%emt 0:00:35]} 24. Bb2+ {[%emt 0:01:21]} Kg8 {[%emt 0:00:10]} 25. Qc3 {[%emt 0:00:09]} Bg7 {[%emt 0:00:07]} 26. exf4 {[%emt 0:04:01]} Qg4 {[%emt 0:00:36]} 27. Qe1 {[%emt 0:01:01]} Bd7 {[%emt 0:01:12]} 28. Qd1 {[%emt 0:00:50]} Qxd1+ {[%emt 0:01:05]} 29. Rxd1 {[%emt 0:00:05]} Bxa4 {[%emt 0:00:17]} 30. Ra1 {[%emt 0:00:31]} Bc2 {[%emt 0:01:08]} 31. Bxg7 {[%emt 0:00:23]} Kxg7 {[%emt 0:00:38]} 32. Bd5 {[%emt 0:00:11]} Ne7 {[%emt 0:00:21]} 33. Be4 {[%emt 0:08:50]} Ng8 {[%emt 0:01:53]} 34. Raxa7 {[%emt 0:00:11]} Rf8 {[%emt 0:00:15]} 35. h4 {[%emt 0:00:56]} h5 {[%emt 0:00:02]} 36. Bd5 {[%emt 0:00:53]} Nh6 37. Rd7 {[%emt 0:02:45]} Bxd3 {[%emt 0:00:07]} 38. Rxd6 {[%emt 0:00:23]} Nf5 {[%emt 0:02:18]} 39. Rdd7 {[%emt 0:00:14]} Nh6 {[%emt 0:00:46]} 40. Rac7 {[%emt 0:02:09]} Bf5 {[%emt 0:00:25]} 41. Re7 {[%emt 0:01:13]} Kf6 {[%emt 0:00:27]} 42. Kf1 {[%emt 0:01:51]} Bd3+ {[%emt 0:00:15]} 43. Ke1 {[%emt 0:00:15]} Bf5 {[%emt 0:00:29]} 44. Kd2 {[%emt 0:01:00]} Bb1 {[%emt 0:02:52]} 45. Kc1 {[%emt 0:00:36]} Bf5 {[%emt 0:00:04]} 46. Kb2 {[%emt 0:00:06]} Rb8+ {[%emt 0:00:02]} 47. Ka3 {[%emt 0:00:16]} Rf8 {[%emt 0:01:51]} 48. Ka4 {[%emt 0:00:07]} Be6 {[%emt 0:03:31]} 49. Bxe6 {[%emt 0:03:45]} fxe6 {[%emt 0:00:10]} 50. Rb7 {[%emt 0:02:15]} Nf5 {[%emt 0:00:14]} 51. Rec7 {[%emt 0:00:07]} Ra8+ {[%emt 0:00:21]} 52. Ra7 {[%emt 0:00:35]} Rxa7+ {[%emt 0:00:47]} 53. Rxa7 {[%emt 0:00:06]} Nxg3 {[%emt 0:00:08]} 54. Kb5 {[%emt 0:00:31]} Ne4 {[%emt 0:00:09]} 55. Ra1 {[%emt 0:00:53]} Kf5 {[%emt 0:00:10]} 56. Re1 {[%emt 0:00:37]} Kxf4 {[%emt 0:00:31]} 57. Rxe4+ {[%emt 0:00:26]} Kxe4 {[%emt 0:00:01]} 58. Kxc5 {[%emt 0:00:08]} Kf4 {[%emt 0:02:19]} 59. Kd6 {[%emt 0:00:10]} e5 {[%emt 0:00:10]} 60. c5 {[%emt 0:00:47]} e4 {[%emt 0:00:21]} 61. c6 {[%emt 0:00:04]} e3 {[%emt 0:00:04]} 62. c7 {[%emt 0:00:02]} e2 {[%emt 0:00:01]} 63. c8=Q {[%emt 0:00:00]} e1=Q {[%emt 0:00:09]} 64. Qf8+ {[%emt 0:00:13]} Kg3 {[%emt 0:00:18]} 65. Qb8 {[%emt 0:01:55]} Kxh4 {[%emt 0:00:56]} 66. Qd8+ {[%emt 0:00:08]} g5 {[%emt 0:00:15]} 67. Kc5 {[%emt 0:00:45]} Qe3+ {[%emt 0:01:28]} 68. Kc4 {[%emt 0:00:33]} Kg3 {[%emt 0:00:48]} 69. Qf8 {[%emt 0:01:17]} Qf4+ {[%emt 0:00:19]} 0-1

[Event "Portuguese-ch U14-20 2022"]
[Site "Fatima"]
[Date "2022.04.12"]
[Round "5.10"]
[White "Vidal Torres, Ricardo"]
[Black "Pipiras, Filipa Fortuna"]
[Result "0-1"]
[ECO "A46"]
[WhiteElo "2332"]
[BlackElo "2000"]
[Annotator "TA"]
[PlyCount "72"]
[EventDate "2022.04.10"]
[EventType "swiss"]
[EventCountry "POR"]
[SourceTitle "playchess.com"]
[Source "ChessBase"]
[SourceQuality "1"]
[TimeControl "5400+30"]

{[%evp 22,72,-2,-4,-11,-19,-4,-4,28,16,42,39,68,61,75,70,83,59,88,50,143,57,41,0,0,0,0,-43,-25,-41,-49,-106,-106,-141,-146,-193,-136,-137,-141,-269,-271,-252,-10,-185,-186,-578,-569,-1471,-1417,-1313,-1241,-29983,-29984]} 1. d4 {[%emt 0:00:02]} Nf6 {[%emt 0:09:10]} 2. Nf3 {[%emt 0:00:18]} d5 {[%emt 0:00:28]} 3. c4 {[%emt 0:00:19]} e6 {[%emt 0:00:28]} 4. cxd5 {[%emt 0:00:11]} exd5 {[%emt 0:00:08]} 5. Bg5 {[%emt 0:00:05]} c6 {[%emt 0:01:11]} 6. Nc3 {[%emt 0:00:05]} Bf5 {[%emt 0:03:49]} 7. e3 {[%emt 0:01:18]} Be7 {[%emt 0:01:12]} 8. Bd3 {[%emt 0:01:27]} Bxd3 {[%emt 0:01:36]} 9. Qxd3 {[%emt 0:00:05]} Nbd7 {[%emt 0:00:09][%cal Bb8d7,Bd7f6,Bf6e4][%mdl 32]} 10. O-O {[%emt 0:01:00]} O-O {[%emt 0:00:30]} 11. Rab1 {[%emt 0:03:04]} a5 {[%emt 0:00:46]} 12. a3 {[%emt 0:02:06]} Ne4 {[%emt 0:07:36] D35: Queen's Gambit Declined: Exchange Variation.} 13. Bf4 {[%emt 0:03:26]} Ndf6 {[%emt 0:05:17]} 14. Ne5 {[%emt 0:01:32] [#]} Nxc3 $146 {[%emt 0:03:20] The position is equal.} ({Predecessor:} 14... a4 15. f3 Nxc3 16. bxc3 Qc8 17. c4 dxc4 18. Nxc4 Nd5 19. Bg3 b5 20. Nd6 Bxd6 21. Bxd6 {0-1 (76) Musson,A (2101)-Batchelor,P (2132) London 2013}) 15. bxc3 {[%emt 0:02:19]} Ra7 {[%emt 0:07:44]} 16. a4 {[%emt 0:03:06]} Ne4 {[%emt 0:01:48]} 17. f3 {[%emt 0:11:42]} Nd6 {[%emt 0:02:38]} 18. e4 {[%emt 0:00:57]} Qc8 {[%emt 0:15:06]} 19. Qe2 {[%emt 0:06:14]} f6 {[%emt 0:06:02]} 20. Ng4 {[%emt 0:08:32] Black must now prevent exd5.} Re8 {[%emt 0:05:41]} (20... dxe4 $14 21. Nf2 (21. fxe4 Qe6 $14) 21... Qe6) 21. Bxd6 {[%emt 0:08:08]} (21. exd5 $16 {Qa2 is the strong threat.} cxd5 22. Ne3) 21... Bxd6 $14 {[%emt 0:00:18]} 22. Nf2 {[%emt 0:01:00]} Qc7 {[%emt 0:02:09]} 23. h3 {[%emt 0:04:14]} Qf7 {[%emt 0:01:38]} 24. Nd3 {[%emt 0:04:48]} dxe4 {[%emt 0:05:20]} 25. fxe4 {[%emt 0:00:28]} Qc4 $1 {[%emt 0:00:27][%csl LRa4,LRc3]} 26. Rbc1 {[%emt 0:08:43]} ({Better is} 26. e5 $15) 26... b5 $17 {[%emt 0:02:10]} 27. axb5 {[%emt 0:00:43]} cxb5 {[%emt 0:00:07]} 28. Qf3 {[%emt 0:03:18]} (28. Rfe1 $17) 28... Rae7 {[%emt 0:01:16]} (28... a4 $19 29. Kh1 a3) 29. Nf2 {[%emt 0:00:53]} a4 {[%emt 0:01:40] &Nero is much more active.} 30. e5 {[%emt 0:02:09]} (30. Ra1 $17 {was worth a try.}) 30... fxe5 $19 {[%emt 0:00:39]} 31. Ne4 {[%emt 0:00:19] [#]} Bb8 {[%emt 0:01:51]} (31... Ba3 $1 $19 32. Nd2 Qa2) 32. Qg4 $2 {[%emt 0:01:09] Loses the game.} (32. d5 $1 $11 {and White stays safe.}) 32... Kh8 {[%emt 0:01:06]} ({Don't play} 32... exd4 33. Nf6+ Kh8 34. Nxe8 Rxe8 35. cxd4 $16) 33. Qh4 $2 {[%emt 0:00:44]} (33. d5) 33... exd4 {[%emt 0:06:07]} 34. cxd4 {[%emt 0:02:36]} Qxd4+ {[%emt 0:00:22]} 35. Qf2 {[%emt 0:00:13]} Rxe4 {[%emt 0:00:53]} 36. Kh1 {[%emt 0:01:04]} Qxf2 {[%emt 0:00:08] Weighted Error Value: White=0.90/Black=0.26 (precise)} 0-1

[Event "Portuguese-ch U14-20 2022"]
[Site "Fatima"]
[Date "2022.04.12"]
[Round "5.11"]
[White "Sismeiro, Miguel"]
[Black "Gomes, Estevao Manuel"]
[Result "1-0"]
[ECO "B31"]
[WhiteElo "2201"]
[BlackElo "2047"]
[Annotator "TA"]
[PlyCount "114"]
[EventDate "2022.04.10"]
[EventType "swiss"]
[EventCountry "POR"]
[SourceTitle "playchess.com"]
[Source "ChessBase"]
[SourceQuality "1"]
[TimeControl "5400+30"]

{[%evp 10,114,29,-5,5,8,10,11,0,5,20,21,20,0,14,0,13,6,40,34,31,24,21,20,40,12,15,4,8,0,26,0,67,49,70,23,23,29,62,65,65,72,71,48,51,52,67,57,61,59,74,62,61,56,56,56,56,56,69,49,52,52,57,56,49,51,286,287,292,282,266,246,347,330,361,368,368,351,469,469,451,367,402,361,344,354,329,280,291,247,569,538,547,505,29983,29984,29984,29985,29986,29987,29989,29990,29992,29993,29993,29994,29994]} 1. e4 {[%emt 0:09:49]} c5 {[%emt 0:00:13]} 2. Nf3 {[%emt 0:00:20]} Nc6 {[%emt 0:00:04]} 3. Bb5 {[%emt 0:00:03]} g6 {[%emt 0:00:07]} 4. O-O {[%emt 0:00:04]} Bg7 {[%emt 0:00:04]} 5. Nc3 {[%emt 0:00:04]} Nd4 {[%emt 0:00:30]} 6. Re1 {[%emt 0:00:06]} Nxb5 {[%emt 0:01:30] B31: Sicilian: 2...Nc6 3 Bb5 g6.} 7. Nxb5 {[%emt 0:00:20]} d6 {[%emt 0:00:38]} 8. d4 {[%emt 0:00:19]} a6 {[%emt 0:02:19] The position is equal.} 9. Nc3 {[%emt 0:00:05] Threatening dxc5.} cxd4 {[%emt 0:02:28]} 10. Nxd4 {[%emt 0:00:11]} Nf6 {[%emt 0:00:08]} 11. Nd5 {[%emt 0:00:39]} O-O {[%emt 0:01:29]} 12. c3 {[%emt 0:01:11]} Bd7 {[%emt 0:01:33]} 13. Bg5 {[%emt 0:00:06] [#]} Bc6 $146 {[%emt 0:01:24]} ({Predecessor:} 13... e6 14. Nxf6+ Bxf6 15. Bxf6 Qxf6 16. a4 Rfd8 17. Qb3 Rab8 18. a5 Qe5 19. Qb4 Qc5 20. Qxc5 dxc5 {½-½ (34) Sismeiro,M (2203)-Silva,G (2213) Gaia 2021}) 14. Bxf6 {[%emt 0:03:15]} exf6 {[%emt 0:00:19]} 15. Nxc6 {[%emt 0:02:17]} bxc6 {[%emt 0:00:09]} 16. Ne3 {[%emt 0:00:18]} Rb8 {[%emt 0:02:57][%cal Of6f5]} 17. Re2 {[%emt 0:00:57]} Re8 {[%emt 0:02:20]} 18. Qa4 Qc7 {[%emt 0:07:12]} 19. Rd1 {[%emt 0:08:39]} Rb5 {[%emt 0:03:12]} 20. Qc4 {[%emt 0:05:52]} Reb8 {[%emt 0:06:49]} ({Better is} 20... Rbe5 $11) 21. b4 {[%emt 0:01:54] aiming for Red2. &Bianco is more active.} Re5 {[%emt 0:02:59]} 22. Qd3 {[%emt 0:15:57]} ({White should play} 22. Red2 $14) 22... Re6 $11 {[%emt 0:06:26]} 23. Nc2 {[%emt 0:01:17]} f5 {[%emt 0:01:36]} 24. exf5 {[%emt 0:02:35]} Rxe2 {[%emt 0:00:07]} 25. Qxe2 {[%emt 0:00:03]} Bxc3 {[%emt 0:00:11]} 26. fxg6 {[%emt 0:00:28]} hxg6 {[%emt 0:00:08]} 27. Qc4 {[%emt 0:00:23]} Bf6 {[%emt 0:03:30]} 28. Qxa6 {[%emt 0:00:28]} d5 {[%emt 0:00:26]} 29. Qd3 {[%emt 0:04:09]} c5 {[%emt 0:03:22]} 30. Qxd5 {[%emt 0:03:34]} cxb4 {[%emt 0:00:17]} 31. Ne3 {[%emt 0:00:20]} Rd8 {[%emt 0:05:29]} 32. Qb3 {[%emt 0:00:32]} Rxd1+ {[%emt 0:00:07]} 33. Qxd1 {[%emt 0:01:08]} Qc5 {[%emt 0:01:50]} 34. Qd5 {[%emt 0:02:07]} Qc1+ {[%emt 0:00:20]} 35. Nd1 {[%emt 0:02:19]} Bg5 {[%emt 0:02:54]} 36. g3 {[%emt 0:00:48]} Bd2 {[%emt 0:00:04]} 37. Qb3 {[%emt 0:00:06]} Kg7 $2 {[%emt 0:00:21] [#] Black cannot hold the game after this.} (37... Bh6 $14) 38. Qb2+ $1 $18 {[%emt 0:01:37]} Qxb2 {[%emt 0:00:39]} 39. Nxb2 {[%emt 0:00:04][%mdl 4096] Endgame KB-KN} Kf6 {[%emt 0:00:06]} 40. Kf1 {[%emt 0:00:05] Threatens to win with Ke2.} Ke6 {[%emt 0:00:40]} (40... Kf5 $142 41. Ke2 Bc3) 41. Ke2 {[%emt 0:01:04]} Bg5 {[%emt 0:00:17]} 42. Kd3 {[%emt 0:01:12]} Kd5 {[%emt 0:00:21]} 43. Nc4 {[%emt 0:00:56]} Bf6 {[%emt 0:01:34]} 44. f4 {[%emt 0:01:47]} Bd4 {[%emt 0:00:47]} 45. Nd2 {[%emt 0:01:12]} Bc3 {[%emt 0:01:41]} 46. Ne4 {[%emt 0:00:18]} Bd4 {[%emt 0:00:12]} 47. Ng5 {[%emt 0:00:07]} Bg1 {[%emt 0:01:29]} 48. Nf3 {[%emt 0:01:21]} ({Inferior is} 48. Nxf7 Bxh2 49. Nh8 Bxg3 $11) 48... Bc5 {[%emt 0:00:28]} 49. h4 {[%emt 0:06:12]} Bf2 $2 {[%emt 0:01:21] [#]} (49... Ba7 {is a better chance.} 50. Ke2 Ke6) 50. g4 {[%emt 0:00:16]} Bg3 {[%emt 0:00:05]} 51. Ke3 {[%emt 0:00:05]} Kc4 {[%emt 0:00:20]} (51... Kd6 $18 52. h5 gxh5) 52. h5 {[%emt 0:00:18] White mates.} g5 {[%emt 0:01:33]} 53. h6 {[%emt 0:02:02]} Bxf4+ {[%emt 0:00:08]} 54. Ke4 {[%emt 0:00:02]} Kc3 {[%emt 0:00:11]} 55. h7 {[%emt 0:00:05]} Kb2 {[%emt 0:00:05]} 56. h8=Q+ {[%emt 0:00:06]} Kxa2 {[%emt 0:00:08]} 57. Qa8+ {[%emt 0:00:39]} Kb2 {[%emt 0:00:14] Weighted Error Value: White=0.08 (flawless) /Black=0.40} 1-0

[Event "Portuguese-ch U14-20 2022"]
[Site "Fatima"]
[Date "2022.04.12"]
[Round "5.12"]
[White "Simoes, Miguel Patricio"]
[Black "Bastiao, Tomas"]
[Result "1/2-1/2"]
[ECO "B35"]
[WhiteElo "2001"]
[BlackElo "1664"]
[Annotator "NA"]
[PlyCount "169"]
[EventDate "2022.04.10"]
[EventType "swiss"]
[EventCountry "POR"]
[SourceTitle "playchess.com"]
[Source "ChessBase"]
[SourceQuality "1"]
[TimeControl "5400+30"]

1. e4 c5 2. Nf3 Nc6 3. d4 cxd4 4. Nxd4 g6 5. Nc3 Bg7 6. Be3 Nf6 7. Bc4 O-O 8. Bb3 Re8 9. O-O a6 10. h3 e6 11. Qf3 d5 12. exd5 Nxd5 13. Nxd5 Nxd4 14. Bxd4 Bxd4 15. Nc3 Qc7 16. Nd1 Bd7 17. c3 Bc6 18. Qg4 Bf6 19. Ne3 Red8 20. Rad1 Rxd1 21. Rxd1 Rd8 22. Rxd8+ Qxd8 23. Qe2 h5 24. Bc2 Qa5 25. a3 Qe5 26. Bd3 Qg5 27. g3 h4 28. Qg4 hxg3 29. Qxg3 Qxg3+ 30. fxg3 Be7 31. Kf2 f5 32. Nc4 Bb5 33. Ne5 Bd6 34. Bxb5 Bxe5 35. Bd7 a5 36. Bxe6+ Kf8 37. a4 b6 38. g4 Ke7 39. gxf5 Kf6 40. Bc8 gxf5 41. Ke3 Kg5 42. Kd3 Bd6 43. Ke3 Bc5+ 44. Kf3 Bd6 45. Be6 Kf6 46. Bc4 Kg5 47. Bd3 Bc5 48. h4+ Kxh4 49. Kf4 Kh5 50. Kxf5 Kh6 51. Kf6 Kh5 52. Be2+ Kh4 53. Ke6 Kg5 54. Kd5 Kf6 55. Kc4 Ke6 56. b4 axb4 57. cxb4 Bg1 58. Kb5 Kd6 59. Ka6 Kc7 60. Bf3 Kb8 61. b5 Bf2 62. Bg2 Bg1 63. Bf3 Bf2 64. a5 bxa5 65. Kxa5 Bg1 66. b6 Bd4 67. Kb5 Ba1 68. Kc4 Bh8 69. Bh1 Ba1 70. Bf3 Bg7 71. Kb5 Ba1 $11 72. Kc6 Bf6 73. Kd7 Ba1 74. Kd8 Be5 75. Ke8 Ba1 76. Bh1 Bd4 77. Bg2 Ba1 78. Bh1 Bc3 79. Bf3 Ba1 80. Bh1 Bb2 81. Bg2 Ba1 82. Bh1 Bb2 83. Bg2 Bc1 84. Bf1 Bh6 85. Ba6 1/2-1/2

[Event "Portuguese-ch U14-20 2022"]
[Site "Fatima"]
[Date "2022.04.12"]
[Round "5.13"]
[White "Abdurramane, Danial Germano"]
[Black "Ribeiro, Rodrigo"]
[Result "0-1"]
[ECO "D04"]
[WhiteElo "1772"]
[BlackElo "1866"]
[Annotator "NA RC"]
[PlyCount "131"]
[EventDate "2022.04.10"]
[EventType "swiss"]
[EventCountry "POR"]
[SourceTitle "playchess.com"]
[Source "ChessBase"]
[SourceQuality "1"]
[TimeControl "5400+30"]

1. d4 {[%emt 0:00:07]} d5 {[%emt 0:00:04]} 2. Nf3 {[%emt 0:00:04]} Nf6 {[%emt 0:00:05]} 3. e3 {[%emt 0:00:08]} c6 {[%emt 0:00:30]} 4. Bd3 {[%emt 0:00:23]} Bg4 {[%emt 0:00:11]} 5. Nbd2 {[%emt 0:00:36]} Nbd7 {[%emt 0:00:08]} 6. c4 {[%emt 0:01:04]} e6 {[%emt 0:01:40]} 7. b3 {[%emt 0:01:58]} Bd6 {[%emt 0:03:16]} 8. Qc2 {[%emt 0:01:48]} a6 {[%emt 0:04:22]} 9. Bb2 {[%emt 0:00:42]} Qb8 {[%emt 0:04:20]} 10. h3 {[%emt 0:02:28]} Bh5 {[%emt 0:00:12]} 11. O-O {[%emt 0:00:35]} O-O {[%emt 0:04:11]} 12. Ne1 {[%emt 0:06:38]} e5 {[%emt 0:01:05]} 13. e4 {[%emt 0:07:40]} dxe4 {[%emt 0:11:10]} 14. Nxe4 {[%emt 0:00:57]} Nxe4 {[%emt 0:00:18]} 15. Bxe4 {[%emt 0:00:23]} Nf6 {[%emt 0:00:41]} 16. Nf3 {[%emt 0:12:10]} Nxe4 {[%emt 0:00:34]} 17. Qxe4 {[%emt 0:00:13]} f5 {[%emt 0:00:31]} 18. Qe3 {[%emt 0:01:17]} e4 {[%emt 0:00:15]} 19. Ne5 {[%emt 0:01:02]} Qe8 $1 {[%emt 0:09:40]} 20. Rfe1 {[%emt 0:17:41]} Qe7 {[%emt 0:03:50]} 21. Nd3 {[%emt 0:07:31]} Rae8 {[%emt 0:02:44]} 22. Nf4 {[%emt 0:03:44]} Bf7 {[%emt 0:00:27]} 23. Qd2 {[%emt 0:13:59]} Qg5 {[%emt 0:05:42]} 24. Bc1 {[%emt 0:01:14]} Qh4 {[%emt 0:03:33]} 25. g3 {[%emt 0:01:15]} Qe7 {[%emt 0:00:59]} 26. h4 {[%emt 0:02:14]} Bb4 {[%emt 0:01:14]} 27. Qe2 {[%emt 0:01:07]} Bxe1 {[%emt 0:00:50]} 28. Qxe1 {[%emt 0:00:07]} Rd8 {[%emt 0:01:06]} 29. Bb2 {[%emt 0:00:50]} Rfe8 {[%emt 0:00:37]} 30. Qe3 {[%emt 0:00:17]} g5 {[%emt 0:04:11]} (30... b5 $17 31. cxb5 axb5) 31. hxg5 {[%emt 0:00:46]} Qxg5 {[%emt 0:00:08]} 32. Rd1 {[%emt 0:02:03]} Bh5 {[%emt 0:15:42]} 33. Rd2 {[%emt 0:00:46]} Bf3 {[%emt 0:00:54]} 34. d5 {[%emt 0:00:59]} Qh6 {[%emt 0:00:58]} 35. Ng2 {[%emt 0:01:23]} Qxe3 {[%emt 0:00:44]} 36. Nxe3 {[%emt 0:00:05]} Rf8 {[%emt 0:01:22]} 37. d6 {[%emt 0:00:08]} f4 {[%emt 0:04:07]} 38. gxf4 {[%emt 0:01:39]} Rxf4 {[%emt 0:00:06]} 39. Kh2 {[%emt 0:00:22]} Rd7 {[%emt 0:10:06]} 40. Kg3 {[%emt 0:00:19]} Rf8 {[%emt 0:00:15]} 41. c5 {[%emt 0:00:05]} Kf7 {[%emt 0:00:51]} 42. Nc4 {[%emt 0:01:08]} Ke6 {[%emt 0:01:07]} 43. Nb6 {[%emt 0:01:47]} Rdf7 {[%emt 0:02:21]} (43... Rg8+ $19 44. Kh3 Rf7) 44. d7 {[%emt 0:03:13]} Rg8+ {[%emt 0:00:18]} 45. Kh2 {[%emt 0:00:14]} Rd8 {[%emt 0:03:53]} (45... Ke7 $15 46. Bc3 Bg4) 46. Rd6+ {[%emt 0:02:26]} Ke7 {[%emt 0:00:46]} 47. Kg3 {[%emt 0:00:40]} h5 {[%emt 0:01:16]} 48. Nc8+ {[%emt 0:01:28]} Kf8 {[%emt 0:00:08]} 49. Rh6 {[%emt 0:00:35]} Rfxd7 {[%emt 0:00:51]} 50. Nd6 {[%emt 0:02:07]} Rxd6 51. cxd6 {[%emt 0:00:18]} Rd7 {[%emt 0:01:07]} (51... Ke8 $11) 52. Bf6 {[%emt 0:01:16]} Ke8 $16 {[%emt 0:00:32]} ({Not} 52... Rxd6 {[#]} 53. Bg7+ $1 Ke7 54. Bf8+ $1 Kxf8 55. Rxd6 $16) (52... Kg8 $14) 53. Be7 {[%emt 0:00:37]} Kf7 {[%emt 0:00:30]} 54. Rf6+ {[%emt 0:00:17]} Kg7 {[%emt 0:00:04]} 55. Kf4 {[%emt 0:00:54]} b5 {[%emt 0:00:57]} 56. Ke5 {[%emt 0:00:43]} Rb7 {[%emt 0:00:25]} 57. Kd4 {[%emt 0:00:23]} Bg2 {[%emt 0:00:34]} 58. Rf5 {[%emt 0:00:30]} Kh6 {[%emt 0:00:12]} 59. Rg5 {[%emt 0:01:03]} Bf3 {[%emt 0:00:32]} 60. Kc5 {[%emt 0:00:52]} h4 {[%emt 0:00:32]} 61. Rg8 {[%emt 0:00:51]} Kh7 {[%emt 0:00:19]} 62. Rc8 {[%emt 0:00:45]} h3 {[%emt 0:00:54]} 63. Bf6 {[%emt 0:00:20]} h2 {[%emt 0:00:28]} 64. Rc7+ {[%emt 0:00:39]} Rxc7 {[%emt 0:00:12]} 65. dxc7 {[%emt 0:00:20]} Bg4 66. Kd4 0-1

[Event "Portuguese-ch U14-20 2022"]
[Site "Fatima"]
[Date "2022.04.12"]
[Round "5.14"]
[White "Gama, Joao Tiago"]
[Black "Sousa, Ricardo Miguel Morai"]
[Result "1/2-1/2"]
[ECO "B17"]
[WhiteElo "1637"]
[BlackElo "2077"]
[Annotator "TA"]
[PlyCount "92"]
[EventDate "2022.04.10"]
[EventType "swiss"]
[EventCountry "POR"]
[SourceTitle "playchess.com"]
[Source "ChessBase"]
[SourceQuality "1"]
[TimeControl "5400+30"]

{[%evp 19,92,23,22,17,0,-53,-4,-9,-8,-19,-4,0,0,-31,-6,0,0,0,0,0,0,0,116,109,105,118,109,95,90,93,88,96,94,64,105,50,77,77,74,81,85,85,89,87,102,96,142,100,87,69,87,86,69,70,110,102,89,64,69,56,100,100,114,114,114,110,112,106,108,77,124,143,134,125,125]} 1. e4 {[%emt 0:00:02]} c6 {[%emt 0:01:27]} 2. d4 {[%emt 0:00:04]} d5 {[%emt 0:00:12]} 3. Nc3 {[%emt 0:00:03]} dxe4 {[%emt 0:00:05]} 4. Nxe4 {[%emt 0:00:02]} Nd7 {[%emt 0:00:07]} 5. Nf3 {[%emt 0:00:05]} Ngf6 {[%emt 0:00:05]} 6. Ng3 e6 {[%emt 0:00:12]} 7. Bd3 {[%emt 0:00:08]} c5 {[%emt 0:02:41]} 8. O-O {[%emt 0:00:05]} cxd4 {[%emt 0:01:23]} 9. Nxd4 {[%emt 0:00:03]} Bc5 {[%emt 0:00:10]} 10. Nb3 {[%emt 0:00:04]} Be7 {[%emt 0:00:07]} 11. a4 {[%emt 0:04:17] B17: Caro-Kann: Modern Line (4...Nd7).} (11. Re1 {keeps more tension.} O-O 12. Nh5 a5 13. c3) 11... O-O {[%emt 0:00:45] [#]} 12. Bd2 $146 {[%emt 0:00:58]} ({Better is} 12. Qe2 $11) ({Predecessor:} 12. Qe2 Nb6 13. Ne4 Nbd5 14. Nxf6+ Nxf6 15. Bf4 Nd5 16. Bg3 Bd6 17. Rfd1 Bxg3 18. hxg3 Qc7 {½-½ (40) Iordachescu,V (2611)-Arun Prasad,S (2482) Al Ain 2014}) 12... b6 {[%emt 0:03:19]} (12... Ne5 $15) 13. Re1 {[%emt 0:00:11] The position is equal.} Bb7 {[%emt 0:01:03]} 14. a5 {[%emt 0:01:49]} Nc5 {[%emt 0:06:24]} 15. Nxc5 {[%emt 0:08:51]} bxc5 {[%emt 0:03:11]} 16. Ne4 {[%emt 0:08:54]} Qc7 {[%emt 0:18:40]} 17. Bc3 {[%emt 0:15:25]} Nd5 {[%emt 0:18:28]} 18. Qh5 {[%emt 0:03:50] [#] Ng5 would kill now.} g6 {[%emt 0:02:31]} 19. Qe5 {[%emt 0:00:15]} Qxe5 {[%emt 0:00:21]} 20. Bxe5 {[%emt 0:00:08]} f6 {[%emt 0:09:04]} (20... Rfd8 $11 {remains equal.}) 21. Bd6 $16 {[%emt 0:01:04]} Bxd6 {[%emt 0:03:37]} 22. Nxd6 {[%emt 0:00:14]} Bc6 {[%emt 0:00:05]} 23. Rxe6 {[%emt 0:01:27] Bc4 is the strong threat.} Nf4 {[%emt 0:00:15][%csl LRe6,LRg2]} 24. Re7 {[%emt 0:01:58]} Nxd3 {[%emt 0:02:42]} 25. cxd3 {[%emt 0:02:55]} Rad8 {[%emt 0:01:46]} 26. Nc4 {0x0.002ceff46a05dp-1022s more active pieces.} a6 {[%emt 0:01:38]} 27. Rd1 {[%emt 0:02:22]} (27. Re6 $16 Bb5 28. g3) 27... Bb5 {[%emt 0:05:17] Strongly threatening ...Bxc4.} 28. b3 Rd4 {[%emt 0:00:30]} 29. Kf1 {[%emt 0:00:53]} Rfd8 {[%emt 0:06:28]} 30. Ke2 {[%emt 0:09:55]} R4d5 {[%emt 0:01:01]} 31. f3 {[%emt 0:01:39]} Rh5 {[%emt 0:00:30]} 32. h3 {[%emt 0:00:30]} Rg5 {[%emt 0:00:30]} ({Black should play} 32... Rhd5) 33. g4 {[%emt 0:00:30]} Rgd5 {[%emt 0:00:30]} 34. Ke3 {[%emt 0:00:30]} Rd4 {[%emt 0:00:43]} 35. Rd2 {[%emt 0:01:42]} R4d5 {[%emt 0:02:04]} 36. Ke2 {[%emt 0:04:16]} Rd4 {[%emt 0:00:30]} 37. Rc7 {[%emt 0:00:30]} R4d5 {[%emt 0:00:30]} 38. Rd1 h5 {[%emt 0:00:30]} 39. Rd2 {[%emt 0:01:00]} hxg4 {[%emt 0:00:14]} 40. hxg4 {[%emt 0:00:09]} R8d7 {[%emt 0:08:18]} 41. Rxd7 {[%emt 0:03:32]} Rxd7 {[%emt 0:00:02] KRB-KRN} 42. Ke3 {[%emt 0:00:07]} Re7+ {[%emt 0:01:17] [#]} 43. Kf2 $1 {[%emt 0:00:55]} Rd7 {[%emt 0:00:17] Against Nd6} 44. f4 {[%emt 0:00:09]} Rd4 {[%emt 0:01:25]} (44... Kf7 $142) 45. Ke3 {[%emt 0:00:11][%cal Ob3b4]} g5 {[%emt 0:00:10]} 46. Rf2 {[%emt 0:00:54]} Kg7 {[%emt 0:00:28] Weighted Error Value: White=0.11 (very precise) /Black=0.17 (very precise)} 1/2-1/2